bitfinex-derivatives/quotes_BTCF0:USTF0_20260119
["timestamp","ask_amount","ask_price","bid_price","bid_amount"]
[1768838773822,0.00050189,93146.0,93134.0,0.010743]
[1768838774613,0.00050189,93146.0,93135.0,0.010742]
[1768838775524,0.00050189,93146.0,93129.0,0.00236233]
[1768838776829,0.00050189,93146.0,93130.0,0.010743]
[1768838777014,0.00016104,93148.0,93136.0,0.010742]
[1768838777324,0.02330893,93147.0,93136.0,0.010742]
[1768838777621,0.00016104,93148.0,93136.0,0.010742]
[1768838777808,0.023308,93147.0,93136.0,0.010742]
[1768838778014,0.00016104,93148.0,93136.0,0.010742]
[1768838778217,0.023308,93147.0,93136.0,0.010742]
[1768838778418,0.00016104,93148.0,93136.0,0.010742]
[1768838778620,0.0233093,93147.0,93136.0,0.010742]
[1768838778809,0.00016104,93148.0,93136.0,0.010742]
[1768838779013,0.0233093,93147.0,93136.0,0.010742]
[1768838779217,0.00016104,93148.0,93136.0,0.010742]
[1768838779517,0.02331174,93147.0,93136.0,0.010742]
[1768838779720,0.00016104,93148.0,93136.0,0.010742]
[1768838779920,0.02331125,93147.0,93136.0,0.010742]
[1768838780215,0.00016104,93148.0,93135.0,0.010742]
[1768838780424,0.02331242,93147.0,93135.0,0.010742]
[1768838780623,0.00016104,93148.0,93135.0,0.010742]
[1768838780825,0.0340531,93147.0,93129.0,0.0884518]
[1768838781016,0.00016104,93148.0,93135.0,0.010742]
[1768838781314,0.0233121,93147.0,93135.0,0.010742]
[1768838781509,0.00016104,93148.0,93135.0,0.010742]
[1768838781710,0.00016104,93148.0,93130.0,0.07679321]
[1768838781711,0.02331207,93147.0,93136.0,0.010742]
[1768838781923,0.00016104,93148.0,93130.0,0.16288268]
[1768838782125,0.02331207,93147.0,93130.0,0.16288268]
[1768838782326,0.00016104,93148.0,93130.0,0.16288268]
[1768838782526,0.02331227,93147.0,93130.0,0.16288268]
[1768838782727,0.00016104,93148.0,93131.0,0.09044597]
[1768838782923,0.02331227,93147.0,93138.0,0.010742]
[1768838783226,0.09668,93147.0,93138.0,0.010742]
[1768838783419,0.09668,93147.0,93135.0,0.010742]
[1768838784328,0.02331314,93146.0,93135.0,0.010742]
[1768838784528,0.09668,93147.0,93135.0,0.010742]
[1768838784830,0.02331314,93146.0,93135.0,0.010742]
[1768838785128,0.107421,93147.0,93135.0,0.010742]
[1768838785428,0.02331314,93146.0,93135.0,0.010742]
[1768838785627,0.09668,93147.0,93136.0,0.010742]
[1768838785824,0.023314,93146.0,93132.0,0.16299823]
[1768838786031,0.09668,93147.0,93132.0,0.16299823]
[1768838786237,0.023314,93146.0,93138.0,0.010742]
[1768838786427,0.09668,93147.0,93139.0,0.010742]
[1768838787431,0.02331616,93146.0,93139.0,0.010742]
[1768838787631,0.09668,93147.0,93139.0,0.010742]
[1768838787818,0.02331663,93146.0,93141.0,0.010742]
[1768838788024,0.00236131,93169.0,93152.0,0.09044597]
[1768838788326,0.09904131,93169.0,93163.0,0.010739]
[1768838788527,0.08593895,93169.0,93163.0,0.010739]
[1768838788927,9.5e-07,93169.0,93165.0,0.010739]
[1768838789120,0.010737,93181.0,93155.0,0.01074]
[1768838789121,0.010738,93172.0,93156.0,0.01074]
[1768838789343,0.07274717,93172.0,93157.0,0.00016104]
[1768838790350,0.010739,93168.0,93157.0,0.00016104]
[1768838790950,0.07274717,93169.0,93157.0,0.00016104]
[1768838791150,0.07274717,93169.0,93158.0,0.01074]
[1768838791445,0.08870244,93173.0,93158.0,0.01074]
[1768838791651,0.010738,93171.0,93157.0,0.00016104]
[1768838792050,0.07274717,93170.0,93157.0,0.00016104]
[1768838792653,0.010739,93169.0,93157.0,0.00016104]
[1768838793438,0.07274717,93170.0,93157.0,0.01090104]
[1768838793852,0.08870244,93173.0,93157.0,0.00016104]
[1768838794245,0.07274717,93174.0,93157.0,0.00016104]
[1768838794445,0.07274717,93174.0,93160.0,0.01074]
[1768838794651,0.08348517,93174.0,93157.0,0.01090104]
[1768838794849,0.07274717,93174.0,93157.0,0.00016104]
[1768838795050,0.010738,93172.0,93157.0,0.00016104]
[1768838795354,0.07274717,93171.0,93158.0,0.01074]
[1768838796551,0.07274717,93171.0,93160.0,0.01074]
[1768838796854,0.07274717,93174.0,93160.0,0.01074]
[1768838797243,0.07274717,93174.0,93157.0,0.01090104]
[1768838797444,0.07274717,93172.0,93157.0,0.01090104]
[1768838798949,0.010738,93171.0,93157.0,0.00016104]
[1768838799346,0.08348517,93171.0,93157.0,0.00016104]
[1768838799653,0.07274717,93171.0,93157.0,0.00016104]
[1768838799953,0.0231882,93170.0,93157.0,0.00016104]
[1768838800154,0.0231882,93169.0,93158.0,0.01074]
[1768838800344,0.07274717,93171.0,93158.0,0.01074]
[1768838800546,0.02318687,93170.0,93158.0,0.01074]
[1768838800746,0.07274717,93171.0,93158.0,0.01074]
[1768838800946,0.02318687,93170.0,93157.0,0.00016104]
[1768838801156,0.08230781,93170.0,93157.0,0.00016104]
[1768838802056,0.010739,93169.0,93157.0,0.00016104]
[1768838802353,0.010739,93167.0,93157.0,0.00016104]
[1768838802856,0.010739,93168.0,93157.0,0.00016104]
[1768838803155,0.08230781,93170.0,93157.0,0.00016104]
[1768838803359,0.010739,93167.0,93157.0,0.00016104]
[1768838804256,0.09304681,93170.0,93157.0,0.00016104]
[1768838804457,0.10520537,93169.0,93157.0,0.00016104]
[1768838804756,0.08230781,93169.0,93157.0,0.00016104]
[1768838806558,0.08230781,93169.0,93159.0,0.01074]
[1768838809058,0.08230781,93169.0,93157.0,0.01090104]
[1768838809859,0.08230781,93169.0,93159.0,0.01074]
[1768838811567,0.08230781,93169.0,93160.0,0.01074]
[1768838811764,0.08230781,93169.0,93157.0,0.00016104]
[1768838812358,0.02291373,93168.0,93157.0,0.00016104]
[1768838812559,0.09668,93172.0,93157.0,0.00016104]
[1768838812759,0.02291373,93171.0,93163.0,0.010739]
[1768838813063,0.02291373,93170.0,93163.0,0.010739]
[1768838813368,0.09668,93172.0,93163.0,0.010739]
[1768838813570,0.02291682,93171.0,93163.0,0.010739]
[1768838813867,0.02291682,93170.0,93163.0,0.010739]
[1768838814059,0.09668,93172.0,93163.0,0.010739]
[1768838814259,0.02291682,93171.0,93163.0,0.010739]
[1768838814455,0.02291682,93170.0,93163.0,0.010739]
[1768838814665,0.02291682,93169.0,93163.0,0.010739]
[1768838814872,0.09668,93172.0,93164.0,0.010739]
[1768838815073,0.02292234,93171.0,93164.0,0.010739]
[1768838815262,0.02292234,93170.0,93164.0,0.010739]
[1768838815569,0.02292234,93169.0,93161.0,0.010739]
[1768838815765,0.02292234,93168.0,93162.0,0.010739]
[1768838815965,0.09668,93172.0,93162.0,0.010739]
[1768838816165,0.02292935,93171.0,93162.0,0.010739]
[1768838816372,0.02292935,93170.0,93162.0,0.010739]
[1768838816572,0.02292935,93169.0,93163.0,0.010739]
[1768838816762,0.02292935,93168.0,93164.0,0.010739]
[1768838817071,3.5e-07,93167.0,93164.0,0.010739]
[1768838817271,0.09668,93172.0,93164.0,0.010739]
[1768838817571,0.09668,93172.0,93165.0,0.010739]
[1768838817869,0.09668,93172.0,93159.0,0.16268965]
[1768838818370,0.09668,93172.0,93164.0,0.010739]
[1768838820368,0.09668,93172.0,93162.0,0.010739]
[1768838820763,0.09668,93172.0,93163.0,0.010739]
[1768838820962,0.09668,93172.0,93165.0,0.010739]
[1768838821871,0.09668,93172.0,93159.0,0.08600987]
[1768838822072,0.09668,93172.0,93166.0,0.010739]
[1768838822267,0.09668,93172.0,93168.0,0.010739]
[1768838822473,0.09668,93179.0,93169.0,0.010739]
[1768838823172,0.09668,93179.0,93166.0,0.010739]
[1768838823375,0.09668,93179.0,93163.0,0.08600987]
[1768838823674,0.08720705,93178.0,93163.0,0.010739]
[1768838823874,0.07646905,93178.0,93162.0,0.010739]
[1768838824072,0.010738,93177.0,93162.0,0.010739]
[1768838824259,0.18027083,93179.0,93157.0,0.00016104]
[1768838824260,0.07646905,93166.0,93157.0,0.00016104]
[1768838824465,0.07646905,93160.0,93149.0,0.00236182]
[1768838824774,0.07646905,93159.0,93149.0,0.00236182]
[1768838826476,0.07646905,93154.0,93134.0,0.08600987]
[1768838826671,0.07646905,93149.0,93137.0,0.010742]
[1768838826972,0.07646905,93149.0,93135.0,0.09668]
[1768838827176,0.07646905,93149.0,93136.0,0.010742]
[1768838827676,0.07646905,93149.0,93135.0,0.09668]
[1768838827973,0.07646905,93149.0,93135.0,0.107422]
[1768838828174,0.07646905,93149.0,93137.0,0.010742]
[1768838828376,0.08375187,93152.0,93137.0,0.010742]
[1768838828571,0.08375187,93152.0,93133.0,0.010743]
[1768838828572,0.07646905,93151.0,93133.0,0.010743]
[1768838828978,0.010741,93150.0,93133.0,0.010743]
[1768838829378,0.07646905,93151.0,93135.0,0.010742]
[1768838829675,0.07646905,93151.0,93137.0,0.010742]
[1768838830279,0.07646905,93151.0,93139.0,0.010742]
[1768838831077,0.07646905,93151.0,93136.0,0.010742]
[1768838831878,0.07646905,93151.0,93139.0,0.010742]
[1768838832690,0.07646905,93151.0,93141.0,0.010742]
[1768838835982,0.07646905,93151.0,93134.0,0.010743]
[1768838836281,0.07646905,93151.0,93143.0,0.010741]
[1768838836692,0.07646905,93151.0,93140.0,0.010742]
[1768838837284,0.07646905,93151.0,93142.0,0.010742]
[1768838838486,0.07646905,93151.0,93133.0,0.08600987]
[1768838839388,0.07646905,93151.0,93142.0,0.010742]
[1768838839585,0.07646905,93151.0,93134.0,0.010743]
[1768838839785,0.07646905,93151.0,93133.0,0.08600987]
[1768838840090,0.07646905,93151.0,93146.0,0.010741]
[1768838840586,0.00016104,93152.0,93148.0,0.010741]
[1768838841983,0.00016104,93152.0,93146.0,0.010741]
[1768838843791,0.00016104,93152.0,93144.0,0.010741]
[1768838844087,0.00016104,93152.0,93146.0,0.010741]
[1768838844291,0.00016104,93152.0,93147.0,0.010741]
[1768838844993,0.00016104,93152.0,93148.0,0.010741]
[1768838845697,0.00016104,93152.0,93145.0,0.010741]
[1768838847994,0.00016104,93152.0,93143.0,0.010742]
[1768838848892,0.00016104,93152.0,93136.0,0.08486315]
[1768838849089,0.00016104,93152.0,93142.0,0.010742]
[1768838850794,0.00016104,93152.0,93143.0,0.010741]
[1768838851488,0.00016104,93152.0,93136.0,0.07791206]
[1768838851687,0.00016104,93152.0,93137.0,0.08486315]
[1768838852494,0.00016104,93152.0,93140.0,0.010742]
[1768838853698,0.00016104,93152.0,93137.0,0.16277521]
[1768838853896,0.00016104,93152.0,93142.0,0.010742]
[1768838854695,0.00016104,93152.0,93138.0,0.16277521]
[1768838854896,0.00016104,93152.0,93139.0,0.08486315]
[1768838855598,0.00016104,93152.0,93143.0,0.010741]
[1768838856199,0.00016104,93152.0,93139.0,0.08486315]
[1768838856590,0.02326477,93151.0,93141.0,0.010742]
[1768838856789,0.00016104,93152.0,93141.0,0.010742]
[1768838856994,0.02326477,93151.0,93141.0,0.010742]
[1768838857195,0.00016104,93152.0,93141.0,0.010742]
[1768838858196,0.0232646,93151.0,93141.0,0.010742]
[1768838858396,0.00016104,93152.0,93139.0,0.08486315]
[1768838858801,0.17991361,93150.0,93139.0,0.08486315]
[1768838858988,0.17991361,93150.0,93132.0,0.08486315]
[1768838858989,0.02326493,93149.0,93132.0,0.08486315]
[1768838859190,0.02326493,93149.0,93120.0,0.08486315]
[1768838859191,0.02455285,93140.0,93120.0,0.08486315]
[1768838859494,0.02325329,93139.0,93126.0,0.010744]
[1768838859699,0.01381085,93140.0,93126.0,0.010744]
[1768838860000,0.0232534,93139.0,93126.0,0.010744]
[1768838860200,0.02325387,93138.0,93126.0,0.010744]
[1768838860401,0.010742,93139.0,93123.0,0.16714706]
[1768838860592,0.09668,93141.0,93125.0,0.010744]
[1768838860791,0.02324468,93140.0,93125.0,0.010744]
[1768838860990,0.02324468,93139.0,93125.0,0.010744]
[1768838861189,0.09668,93141.0,93125.0,0.010744]
[1768838861495,0.03398669,93140.0,93125.0,0.010744]
[1768838861692,0.01249848,93139.0,93123.0,0.0833535]
[1768838861902,0.010742,93140.0,93124.0,0.010744]
[1768838865900,0.107422,93141.0,93124.0,0.0940975]
[1768838866498,0.107422,93141.0,93126.0,0.010744]
[1768838868321,0.010742,93139.0,93124.0,0.0833535]
[1768838868521,0.010742,93139.0,93116.0,0.01139349]
[1768838868522,0.010743,93130.0,93116.0,0.0833535]
[1768838868710,0.010743,93130.0,93113.0,0.010745]
[1768838868711,0.17991361,93130.0,93113.0,0.010745]
[1768838869316,0.17991361,93130.0,93115.0,0.010745]
[1768838870118,0.27659361,93130.0,93117.0,0.010745]
[1768838870812,0.27659361,93130.0,93114.0,0.010745]
[1768838871625,0.27659361,93130.0,93116.0,0.010745]
[1768838872222,0.27659361,93130.0,93113.0,0.0940985]
[1768838872423,0.27659361,93130.0,93115.0,0.010745]
[1768838873120,0.010744,93127.0,93109.0,0.01310783]
[1768838873324,0.00514308,93128.0,93111.0,0.010745]
[1768838873527,0.010743,93127.0,93111.0,0.08908729]
[1768838873716,0.010743,93127.0,93112.0,0.07834229]
[1768838874026,0.010743,93128.0,93112.0,0.15679673]
[1768838874413,0.010743,93128.0,93113.0,0.07834229]
[1768838874717,0.27659361,93130.0,93114.0,0.010745]
[1768838874922,0.010743,93129.0,93114.0,0.010745]
[1768838875319,0.27659361,93130.0,93116.0,0.010745]
[1768838875513,0.27659361,93130.0,93116.0,0.16754173]
[1768838876010,0.27659361,93130.0,93116.0,0.08908729]
[1768838876214,0.28733661,93130.0,93116.0,0.07834229]
[1768838879324,0.27659361,93130.0,93116.0,0.08908729]
[1768838880927,0.09668,93130.0,93116.0,0.08908729]
[1768838881126,0.09668,93130.0,93116.0,0.07834229]
[1768838881327,0.010743,93129.0,93116.0,0.07834229]
[1768838881529,0.010743,93129.0,93110.0,0.07834229]
[1768838881730,0.09668,93130.0,93110.0,0.15679673]
[1768838882030,0.00288677,93123.0,93109.0,0.00236283]
[1768838882230,0.00288677,93123.0,93109.0,0.01310783]
[1768838882430,0.00288677,93123.0,93109.0,0.00236283]
[1768838883123,0.00288677,93123.0,93110.0,0.010745]
[1768838883622,0.08282835,93125.0,93110.0,0.010745]
[1768838883822,0.010744,93126.0,93110.0,0.010745]
[1768838883823,0.01324534,93126.0,93110.0,0.010745]
[1768838884022,0.02307468,93125.0,93110.0,0.010745]
[1768838884230,0.01324534,93126.0,93110.0,0.010745]
[1768838884446,0.02307652,93125.0,93110.0,0.010745]
[1768838884630,0.010744,93125.0,93109.0,0.00236283]
[1768838885027,0.010744,93124.0,93109.0,0.00236283]
[1768838885222,0.010744,93123.0,93109.0,0.00236283]
[1768838886326,0.010744,93121.0,93109.0,0.00236283]
[1768838886632,0.00176158,93123.0,93109.0,0.00236283]
[1768838886831,0.08282835,93117.0,93104.0,0.00236295]
[1768838887128,0.010745,93113.0,93104.0,0.00236295]
[1768838888235,0.000272,93119.0,93104.0,0.00236295]
[1768838888435,0.02309283,93118.0,93104.0,0.00236295]
[1768838888623,0.02309283,93117.0,93104.0,0.00236295]
[1768838888824,0.03383783,93116.0,93104.0,0.00236295]
[1768838889031,0.02309283,93115.0,93104.0,0.00236295]
[1768838889231,0.000272,93119.0,93098.0,0.07834229]
[1768838889232,0.010745,93114.0,93098.0,0.07834229]
[1768838889931,0.010745,93114.0,93099.0,0.07834229]
[1768838890233,0.10754071,93120.0,93101.0,0.07845444]
[1768838890532,0.00011301,93113.0,93102.0,0.07834229]
[1768838902743,0.00011301,93113.0,93103.0,0.010746]
[1768838903146,0.00011301,93113.0,93103.0,0.15163453]
[1768838903346,0.09672,93120.0,93106.0,0.08111819]
[1768838903642,0.02293075,93119.0,93106.0,0.08111819]
[1768838903844,0.010745,93115.0,93106.0,0.08111819]
[1768838904044,0.09672,93120.0,93106.0,0.08111819]
[1768838904231,0.02293094,93119.0,93106.0,0.08111819]
[1768838904434,0.02293094,93118.0,93102.0,0.07051634]
[1768838904751,0.010745,93113.0,93102.0,0.07051634]
[1768838905137,0.010745,93110.0,93102.0,0.07051634]
[1768838905337,0.010745,93113.0,93102.0,0.07051634]
[1768838905643,0.010745,93113.0,93102.0,0.15163453]
[1768838906539,0.0646217,93119.0,93086.0,0.010748]
[1768838906842,0.010746,93101.0,93083.0,0.010748]
[1768838907146,0.010747,93099.0,93080.0,0.010749]
[1768838907639,0.00016113,93101.0,93078.0,0.0114713]
[1768838907837,0.00016113,93101.0,93072.0,0.01075]
[1768838908046,0.00016113,93101.0,93083.0,0.010748]
[1768838908648,0.00016113,93101.0,93086.0,0.07051634]
[1768838908847,0.00016113,93101.0,93086.0,0.15163453]
[1768838909158,0.00016113,93101.0,93088.0,0.15163453]
[1768838909443,0.00016113,93101.0,93083.0,0.07051634]
[1768838909647,0.02294198,93100.0,93083.0,0.07051634]
[1768838909851,0.00016113,93101.0,93084.0,0.07051634]
[1768838909852,0.02294198,93099.0,93084.0,0.07051634]
[1768838910040,0.01090813,93101.0,93087.0,0.07051634]
[1768838910350,0.02294203,93100.0,93088.0,0.07051634]
[1768838910546,0.00016113,93101.0,93088.0,0.15163453]
[1768838910850,0.02293811,93100.0,93089.0,0.07051634]
[1768838911049,0.02294192,93099.0,93089.0,0.07051634]
[1768838911349,0.00016113,93101.0,93089.0,0.07051634]
[1768838911550,0.03368559,93100.0,93089.0,0.07051634]
[1768838911758,0.010747,93100.0,93089.0,0.07051634]
[1768838913042,0.010747,93097.0,93088.0,0.08111819]
[1768838913236,0.010747,93097.0,93082.0,0.15163453]
[1768838913748,0.00016113,93101.0,93083.0,0.07051634]
[1768838913749,0.010747,93100.0,93083.0,0.07051634]
[1768838914055,0.02293674,93099.0,93085.0,0.07051634]
[1768838914251,0.02293674,93098.0,93085.0,0.07051634]
[1768838914451,0.010747,93100.0,93085.0,0.07051634]
[1768838914655,0.02293512,93099.0,93085.0,0.15163453]
[1768838914848,0.02293512,93098.0,93086.0,0.07051634]
[1768838915044,0.00016113,93101.0,93086.0,0.07051634]
[1768838915245,0.010747,93097.0,93086.0,0.07051634]
[1768838916356,0.00016113,93101.0,93086.0,0.07051634]
[1768838916552,0.02293455,93100.0,93086.0,0.07051634]
[1768838916746,0.02293455,93099.0,93087.0,0.07051634]
[1768838916948,0.02293455,93098.0,93088.0,0.07051634]
[1768838917254,0.01090813,93101.0,93088.0,0.07051634]
[1768838917455,0.02293271,93100.0,93088.0,0.07051634]
[1768838917756,0.02293271,93099.0,93088.0,0.07051634]
[1768838917958,0.02293271,93098.0,93088.0,0.07051634]
[1768838918148,0.01090713,93101.0,93088.0,0.07051634]
[1768838918455,0.02293271,93100.0,93088.0,0.07051634]
[1768838918657,0.02293271,93099.0,93088.0,0.07051634]
[1768838918850,0.02293271,93098.0,93088.0,0.15163453]
[1768838919158,0.010747,93095.0,93088.0,0.08111819]
[1768838920059,0.010747,93098.0,93088.0,0.08111819]
[1768838920459,0.010747,93095.0,93088.0,0.08111819]
[1768838920756,0.00016113,93101.0,93088.0,0.08111819]
[1768838920949,0.02292864,93100.0,93088.0,0.08111819]
[1768838921261,0.03367564,93099.0,93088.0,0.08111819]
[1768838921565,0.02292864,93098.0,93088.0,0.08111819]
[1768838921861,0.010747,93097.0,93088.0,0.08111819]
[1768838922961,0.02325257,93096.0,93088.0,0.08111819]
[1768838923263,0.010747,93093.0,93088.0,0.08111819]
[1768838924357,0.010747,93094.0,93082.0,0.14996617]
[1768838924858,0.010747,93094.0,93083.0,0.06973599]
[1768838925562,0.07104235,93101.0,93083.0,0.06973599]
[1768838925760,0.02325297,93100.0,93083.0,0.06973599]
[1768838926059,0.02325297,93099.0,93083.0,0.06973599]
[1768838926255,0.02325297,93098.0,93083.0,0.14996617]
[1768838926448,0.010747,93093.0,93084.0,0.06973599]
[1768838927663,0.00016113,93101.0,93084.0,0.06973599]
[1768838927956,0.010747,93095.0,93084.0,0.06973599]
[1768838928264,0.010747,93095.0,93083.0,0.14996617]
[1768838928454,0.010747,93095.0,93084.0,0.06973599]
[1768838928654,0.010747,93095.0,93085.0,0.06973599]
[1768838930361,0.010747,93095.0,93085.0,0.08023018]
[1768838930663,0.010747,93098.0,93086.0,0.06973599]
[1768838930866,0.010747,93096.0,93086.0,0.06973599]
[1768838931059,0.02325997,93095.0,93087.0,0.06973599]
[1768838931260,0.010747,93099.0,93087.0,0.06973599]
[1768838931460,0.02326261,93098.0,93087.0,0.06973599]
[1768838931660,0.02326261,93097.0,93087.0,0.14996617]
[1768838931860,0.02326261,93096.0,93087.0,0.14996617]
[1768838932068,0.02326261,93095.0,93087.0,0.14996617]
[1768838932257,0.010747,93097.0,93087.0,0.07996617]
[1768838932458,0.010747,93095.0,93087.0,0.07996617]
[1768838932670,0.00016113,93101.0,93087.0,0.07996617]
[1768838932671,0.010747,93098.0,93087.0,0.07996617]
[1768838932969,0.0232657,93097.0,93087.0,0.07996617]
[1768838933267,0.0232657,93096.0,93087.0,0.07996617]
[1768838933567,0.0340127,93095.0,93087.0,0.07996617]
[1768838933866,0.0232657,93094.0,93087.0,0.07996617]
[1768838934568,0.0232657,93094.0,93087.0,0.00996617]
[1768838935771,0.0232657,93093.0,93087.0,0.00996617]
[1768838936063,0.010747,93098.0,93087.0,0.00996617]
[1768838936272,0.023285,93097.0,93085.0,0.04577713]
[1768838936460,0.023285,93096.0,93085.0,0.04577713]
[1768838936768,0.023285,93095.0,93085.0,0.04577713]
[1768838936966,0.023285,93094.0,93085.0,0.04577713]
[1768838937165,0.023285,93093.0,93085.0,0.04577713]
[1768838937364,0.023285,93092.0,93085.0,0.04577713]
[1768838937667,0.010747,93099.0,93085.0,0.04577713]
[1768838937668,0.023285,93091.0,93085.0,0.04577713]
[1768838937867,0.010747,93097.0,93085.0,0.04577713]
[1768838938068,0.02326029,93096.0,93085.0,0.04577713]
[1768838938255,0.02326029,93095.0,93085.0,0.04577713]
[1768838938459,0.02326029,93094.0,93085.0,0.04577713]
[1768838939970,0.010747,93093.0,93085.0,0.04577713]
[1768838940266,0.02326029,93092.0,93085.0,0.04577713]
[1768838940670,0.02326029,93091.0,93085.0,0.04577713]
[1768838940869,0.010747,93093.0,93085.0,0.04577713]
[1768838941064,0.02326665,93092.0,93085.0,0.04577713]
[1768838941265,0.02326665,93091.0,93085.0,0.04577713]
[1768838941462,0.02326665,93090.0,93085.0,0.04577713]
[1768838941665,0.010747,93100.0,93085.0,0.12428639]
[1768838941968,0.010747,93094.0,93085.0,0.12428639]
[1768838942165,0.02326788,93093.0,93085.0,0.12428639]
[1768838942369,0.02326788,93092.0,93085.0,0.12428639]
[1768838942574,0.02326788,93091.0,93086.0,0.06976096]
[1768838942759,0.02326788,93090.0,93086.0,0.06976096]
[1768838942961,0.00016113,93101.0,93090.0,0.06976096]
[1768838943170,0.20350422,93100.0,93089.0,0.14827022]
[1768838943372,0.02326955,93099.0,93089.0,0.14827022]
[1768838944973,0.010747,93097.0,93079.0,0.14827022]
[1768838945165,0.18023467,93090.0,93085.0,0.06976096]
[1768838945473,0.010747,93097.0,93087.0,0.06976096]
[1768838945676,0.02327243,93096.0,93087.0,0.06976096]
[1768838945870,0.02327243,93095.0,93087.0,0.06976096]
[1768838946063,0.02327243,93094.0,93087.0,0.06976096]
[1768838946260,0.02327243,93093.0,93087.0,0.06976096]
[1768838946460,0.18023467,93100.0,93088.0,0.07850926]
[1768838946660,0.19098167,93100.0,93088.0,0.07850926]
[1768838946862,0.18023467,93100.0,93088.0,0.14827022]
[1768838947060,0.18023467,93100.0,93089.0,0.06976096]
[1768838948175,0.00016113,93101.0,93089.0,0.08050896]
[1768838948376,0.14670239,93128.0,93102.0,0.07850926]
[1768838948674,0.09672,93123.0,93107.0,0.06976096]
[1768838948975,0.19097867,93120.0,93107.0,0.06976096]
[1768838949276,0.010744,93118.0,93106.0,0.07850926]
[1768838949663,0.010744,93118.0,93093.0,0.06976096]
[1768838949664,0.010746,93109.0,93093.0,0.06976096]
[1768838949868,0.010746,93107.0,93093.0,0.06976096]
[1768838950172,0.010747,93098.0,93068.0,0.01157051]
[1768838950474,0.010747,93095.0,93070.0,0.09672]
[1768838950781,0.18023467,93090.0,93074.0,0.010749]
[1768838951474,0.18023467,93090.0,93070.0,0.27695467]
[1768838951673,0.18023467,93080.0,93063.0,0.05800603]
[1768838951977,0.19098367,93080.0,93062.0,0.01145106]
[1768838952183,0.18023467,93080.0,93066.0,0.06976096]
[1768838952377,0.010749,93080.0,93067.0,0.06976096]
[1768838952775,0.08096116,93084.0,93062.0,0.06976096]
[1768838952969,0.18023467,93080.0,93062.0,0.06976096]
[1768838953372,0.18023467,93080.0,93064.0,0.07212492]
[1768838953976,0.18023467,93080.0,93066.0,0.06976096]
[1768838954873,0.18023467,93080.0,93067.0,0.01075]
[1768838955069,0.09672,93084.0,93067.0,0.06976096]
[1768838955378,0.010749,93081.0,93067.0,0.06976096]
[1768838956183,0.010749,93079.0,93064.0,0.00236396]
[1768838956576,0.010749,93079.0,93064.0,0.07212492]
[1768838956886,0.18023467,93080.0,93064.0,0.07212492]
[1768838957186,0.09171016,93083.0,93064.0,0.07212492]
[1768838957484,0.17787133,93080.0,93064.0,0.07212492]
[1768838958485,0.18023467,93080.0,93064.0,0.07212492]
[1768838959179,0.18023467,93080.0,93065.0,0.010751]
[1768838960889,0.18023467,93080.0,93064.0,0.07212492]
[1768838963599,0.010749,93079.0,93064.0,0.07212492]
[1768838964183,0.010749,93077.0,93064.0,0.07212492]
[1768838964388,0.18023467,93080.0,93064.0,0.07212492]
[1768838965191,0.010749,93076.0,93064.0,0.00236396]
[1768838965389,0.010749,93077.0,93064.0,0.00236396]
[1768838965691,0.19098367,93080.0,93064.0,0.00236396]
[1768838965895,0.18023467,93080.0,93064.0,0.01311496]
[1768838966287,0.18023467,93080.0,93065.0,0.07528532]
[1768838966592,0.08096116,93083.0,93065.0,0.07528532]
[1768838966888,0.02280806,93082.0,93065.0,0.07528532]
[1768838967089,0.08096116,93083.0,93065.0,0.07528532]
[1768838967290,0.08022259,93094.0,93073.0,0.16061478]
[1768838967479,0.11956621,93091.0,93081.0,0.07528532]
[1768838967681,0.02280621,93090.0,93081.0,0.07528532]
[1768838967986,0.09676,93091.0,93081.0,0.08603432]
[1768838968187,0.09676,93091.0,93081.0,0.07528532]
[1768838968387,0.09676,93092.0,93079.0,0.010749]
[1768838968693,0.09676,93092.0,93081.0,0.07528532]
[1768838968887,0.09676,93104.0,93089.0,0.07528532]
[1768838969190,0.09676,93104.0,93087.0,0.08603332]
[1768838969776,0.107506,93104.0,93089.0,0.010748]
[1768838969976,0.09676,93104.0,93092.0,0.07528532]
[1768838970182,0.09676,93112.0,93099.0,0.010747]
[1768838970386,0.010745,93116.0,93096.0,0.07367695]
[1768838970387,0.09676,93114.0,93096.0,0.07367695]
[1768838970584,0.107505,93114.0,93096.0,0.07367695]
[1768838970982,0.107505,93114.0,93096.0,0.06292995]
[1768838971191,0.010745,93112.0,93096.0,0.06309108]
[1768838971391,0.09676,93114.0,93096.0,0.06309108]
[1768838971792,0.010745,93111.0,93096.0,0.06309108]
[1768838972385,0.09676,93114.0,93096.0,0.06309108]
[1768838973194,0.09676,93114.0,93097.0,0.010747]
[1768838974092,0.13891801,93114.0,93097.0,0.06164639]
[1768838974491,0.09676,93114.0,93096.0,0.07383808]
[1768838974795,0.13891801,93114.0,93097.0,0.05089939]
[1768838975296,0.14966301,93114.0,93097.0,0.05089939]
[1768838975500,0.107505,93114.0,93096.0,0.06309108]
[1768838975998,0.010745,93112.0,93096.0,0.06309108]
[1768838976593,0.05256088,93112.0,93096.0,0.11515028]
[1768838976800,0.09676,93114.0,93096.0,0.06309108]
[1768838976999,0.04306199,93112.0,93096.0,0.11482876]
[1768838977203,0.18023467,93110.0,93096.0,0.05188791]
[1768838977505,0.15693286,93109.0,93096.0,0.05188791]
[1768838977697,0.15693286,93109.0,93096.0,0.00016113]
[1768838978504,0.010746,93106.0,93096.0,0.00016113]
[1768838978705,0.010746,93106.0,93096.0,0.05126886]
[1768838979592,0.05398083,93106.0,93096.0,0.05092521]
[1768838979794,0.010746,93106.0,93089.0,0.05655054]
[1768838980003,0.05405339,93106.0,93096.0,0.05026324]
[1768838980406,0.04330739,93106.0,93096.0,0.05026324]
[1768838981208,0.010746,93107.0,93090.0,0.18023467]
[1768838981410,0.010746,93107.0,93092.0,0.05139662]
[1768838981907,0.010746,93107.0,93090.0,0.18023467]
[1768838982903,0.05366835,93107.0,93092.0,0.05149946]
[1768838984212,0.05317197,93107.0,93092.0,0.05022254]
[1768838984410,0.04242597,93107.0,93092.0,0.05022254]
[1768838985213,0.010746,93106.0,93092.0,0.05010612]
[1768838985513,0.010746,93104.0,93092.0,0.05010612]
[1768838986513,0.010746,93104.0,93090.0,0.25760147]
[1768838986713,0.05413067,93104.0,93090.0,0.30774941]
[1768838986902,0.04338467,93104.0,93090.0,0.31849741]
[1768838987313,0.04338467,93104.0,93090.0,0.30774941]
[1768838987611,0.04338467,93104.0,93090.0,0.31849741]
[1768838987911,0.010746,93106.0,93090.0,0.26834947]
[1768838988116,0.01310883,93109.0,93092.0,0.010747]
[1768838988808,0.04239459,93104.0,93091.0,0.0773668]